[Event "ITT 1st Parada Jamundi 2022"]
[Site "Jamundi Valle"]
[Date "2022.12.11"]
[Round "9.10"]
[White "Pazos Gambarrotti, Plinio"]
[Black "Mateus, Alejandro"]
[Result "0-1"]
[ECO "B10"]
[WhiteElo "2083"]
[BlackElo "2308"]
[Annotator "TA"]
[PlyCount "84"]
[EventDate "2022.12.05"]
[EventType "swiss"]
[EventCountry "COL"]
[SourceTitle "playchess.com"]
[Source "ChessBase"]
[SourceQuality "1"]
[TimeControl "5400+30"]

{[%evp 13,84,0,0,6,-2,4,17,17,16,8,14,5,43,23,33,-37,-18,-40,86,-41,12,-48,47,-14,-18,-15,0,-121,-118,-116,-116,-131,-119,-145,-145,-143,-138,-136,-131,-212,-240,-250,-238,-264,-264,-327,-163,-158,-62,-239,-141,-130,-159,-260,-250,-493,-494,-914,-908,-857,-830,-1062,-920,-1321,-1172,-1290,-1310,-12838,-12839,-12838,-12839,-12828,-1515]} 1. c4 {[%emt 0:00:06]} c6 {[%emt 0:00:39]} 2. e4 {[%emt 0:00:32]} d5 {[%emt 0:00:14]} 3. exd5 {[%emt 0:00:06]} cxd5 {[%emt 0:00:04]} 4. cxd5 {[%emt 0:00:04]} Nf6 {[%emt 0:00:07]} 5. Qa4+ {[%emt 0:00:10]} Nbd7 {[%emt 0:00:36]} 6. Nc3 {[%emt 0:00:06]} g6 {[%emt 0:00:32]} 7. Nf3 {[%emt 0:00:11]} Bg7 {[%emt 0:00:19]} 8. Bc4 {[%emt 0:00:19] B10: Caro-Kann: 2 d3 and 2 c4.} O-O {[%emt 0:00:47]} 9. d3 {[%emt 0:00:12]} a6 {[%emt 0:06:40] Threatens to win with ...b5.} (9... Nb6 $5 {[%cal Rb6a4]} 10. Qb3 Bg4 $11) 10. Qa3 {[%emt 0:00:17] The position is equal.} Nb6 {[%emt 0:04:44]} 11. Qb3 {[%emt 0:02:03]} Nxc4 {[%emt 0:09:37]} 12. dxc4 {[%emt 0:00:21]} Qc7 {[%emt 0:00:22]} 13. Be3 {[%emt 0:02:00]} Bf5 {[%emt 0:05:02] [#]} 14. Ne2 $146 {[%emt 0:01:25]} ({Better is} 14. Bb6 $14 Qf4 15. O-O) ({Predecessor:} 14. Bb6 Qf4 15. Ne2 Qe4 16. Rc1 Rac8 17. Kf1 Bh6 18. Be3 Bxe3 19. fxe3 b5 20. Nd2 {0-1 (58) Nosacheva,M (2166)-Gvanceladze,A (2183) Cheliabinsk 2022}) 14... Rfc8 {[%emt 0:15:36][%mdl 1024] Black has compensation.} 15. Rc1 {[%emt 0:00:16]} Nd7 {[%emt 0:02:36]} (15... b5 $1 $15 16. c5 Rd8) 16. Bf4 {[%emt 0:13:46]} (16. Nh4 $16) 16... Qd8 {[%emt 0:03:23]} (16... Qa5+ $15 17. Bd2 Qb6) 17. Be3 {[%emt 0:03:09]} (17. Qxb7 $2 Nc5 $19) (17. O-O $11) 17... Bg4 {[%emt 0:04:07]} (17... Qa5+ $15 18. Bd2 Qb6 19. Qxb6 Nxb6) 18. Ned4 {[%emt 0:04:56]} (18. Qxb7 $2 {too greedy.} Rab8 19. Qa7 (19. Qxa6 $2 {loses.} Bxf3 20. gxf3 Ra8 $19) 19... Rxb2 $19) (18. O-O $14) 18... Nc5 {[%emt 0:02:16]} 19. Qc2 {[%emt 0:02:42]} Qa5+ {[%emt 0:04:30]} (19... e5 {simplifies} 20. dxe6 Nxe6 21. Qd2 Bxf3 22. Nxf3 Qxd2+ 23. Kxd2 Bxb2 24. Rb1 Bf6) 20. Bd2 {[%emt 0:02:20]} (20. Ke2 $11 {remains equal.}) 20... Qxa2 $17 {[%emt 0:04:02]} 21. b4 {[%emt 0:01:18][%csl LRa2,LRc5]} Qxc2 {[%emt 0:01:11]} 22. Rxc2 {[%emt 0:00:06]} Nd3+ {[%emt 0:01:40]} 23. Ke2 {[%emt 0:00:45]} Bxd4 {[%emt 0:02:22] Black is much more active. The white rooks are badly placed. A strong pair of Bishops.} 24. Kxd3 {[%emt 0:00:21]} Bf5+ {[%emt 0:01:08][%cal Bg4f5,Bf5c2,Bc2b3,Bb3c4][%mdl 32]} 25. Kxd4 {[%emt 0:00:06] aiming for Rcc1.} Bxc2 {[%emt 0:00:06]} 26. Re1 {[%emt 0:00:46]} (26. Rc1 $17 Bf5 27. Re1) 26... Bb3 $19 {[%emt 0:02:41]} 27. Rc1 {[%emt 0:00:51]} b5 {[%emt 0:02:30]} 28. Ne5 {[%emt 0:00:22]} Bxc4 {[%emt 0:01:27]} 29. Nc6 {[%emt 0:01:02]} Re8 {[%emt 0:02:08]} (29... Rc7 $142 30. Be3 Rd7) 30. Re1 {[%emt 0:00:38]} e5+ {[%emt 0:08:17]} ({Black should play} 30... Kg7 $17 {[%cal Oc4d5] Strongly threatening ...Bxd5!} 31. Nxe7 Rad8) 31. Kc5 $2 {[%emt 0:00:49] [#] Loses the game.} ({White must play} 31. Rxe5 $15 Rxe5 32. Kxe5) 31... f6 {[%emt 0:00:30]} ({Black should try} 31... Bxd5 $1 $19 32. Kxd5 {[#]} Red8+ $1 {[%mdl 512]} 33. Nxd8 Rxd8+ 34. Kc6 Rxd2) 32. d6 {[%emt 0:01:06]} Be6 {[%emt 0:01:02] Inhibits d7. White must now prevent ...Kf7.} 33. f4 {[%emt 0:01:01]} (33. Ne7+ $17 Kf7 34. Kc6) 33... exf4 {[%emt 0:03:20]} 34. Rxe6 $2 {[%emt 0:00:37]} (34. Bxf4 {might work better.} Rac8 35. Kb6) 34... Rxe6 {[%emt 0:00:08] Black is clearly winning.} 35. d7 {[%emt 0:00:04]} (35. Bxf4 $142 Rc8 36. Kb6) 35... g5 {[%emt 0:04:11]} 36. Bc3 {[%emt 0:00:06]} Kg7 {[%emt 0:03:04]} 37. h4 {[%emt 0:00:24]} h6 {[%emt 0:01:30]} 38. Nd4 {[%emt 0:01:25]} Re7 {[%emt 0:01:23]} 39. Kd6 {[%emt 0:00:35]} Kf7 {[%emt 0:00:27] ...Rd8 is the strong threat.} 40. Nc6 {[%emt 0:00:56] Against Rd8} Re6+ {[%emt 0:00:40]} 41. Kc7 {[%emt 0:01:01] [#]} Rxc6+ $1 {[%emt 0:01:06]} 42. Kxc6 {[%emt 0:00:17]} Ke6 {[%emt 0:00:29] Weighted Error Value: White=1.16/Black=0.38} 0-1

[Event "ITT 1st Parada Jamundi 2022"]
[Site "Jamundi Valle"]
[Date "2022.12.10"]
[Round "9.11"]
[White "Mora Munoz, Alejandro"]
[Black "Gonzalez Velasco, Leandro"]
[Result "1/2-1/2"]
[ECO "B65"]
[WhiteElo "1959"]
[BlackElo "1915"]
[Annotator "TA"]
[PlyCount "34"]
[EventDate "2022.12.05"]
[EventType "swiss"]
[EventCountry "COL"]
[SourceTitle "playchess.com"]
[Source "ChessBase"]
[SourceQuality "1"]
[TimeControl "5400+30"]

{[%evp 20,34,35,23,19,29,23,22,25,38,17,0,0,-45,0,-30,-29]} 1. e4 {[%emt 0:00:41]} c5 {[%emt 0:00:18]} 2. Nf3 {[%emt 0:00:09]} d6 {[%emt 0:00:09]} 3. d4 {[%emt 0:00:07]} cxd4 {[%emt 0:00:31]} 4. Nxd4 {[%emt 0:00:15]} Nf6 {[%emt 0:00:07]} 5. Nc3 {[%emt 0:00:08]} Nc6 {[%emt 0:00:16]} 6. Bg5 {[%emt 0:00:15]} e6 {[%emt 0:00:06]} 7. Qd2 {[%emt 0:00:08]} Be7 {[%emt 0:00:48]} 8. O-O-O {[%emt 0:00:22]} O-O {[%emt 0:01:21]} 9. f4 {[%emt 0:03:58]} Nxd4 {[%emt 0:00:20]} 10. Qxd4 {[%emt 0:00:08]} Qa5 {[%emt 0:00:28]} 11. e5 $1 {[%emt 0:00:19][%mdl 4] is more profitable than 11.Bc4 at the moment.} dxe5 {[%emt 0:00:36] B65: Sicilian: Richter-Rauzer: 7...Be7 8 0-0-0 0-0 9 f4 Nxd4.} 12. Qxe5 {[%emt 0:00:11]} ({Much weaker is} 12. fxe5 Rd8 13. Qf4 Rxd1+ 14. Kxd1 Nd5 15. Nxd5 Qxd5+ 16. Kc1 Bxg5 17. Qxg5 Bd7 $15) 12... Qxe5 {[%emt 0:00:31]} 13. fxe5 {[%emt 0:00:06]} Nd5 {[%emt 0:00:07] The position is equal.} 14. Bxe7 {[%emt 0:00:11]} Nxe7 {[%emt 0:00:05]} 15. Bb5 {[%emt 0:00:19]} a6 {[%emt 0:00:54] [#]} 16. Bd7 $146 {[%emt 0:00:07]} ({Predecessor:} 16. Bd3 b5 17. Be4 Rb8 18. Rd6 b4 19. Na4 Rb5 20. Re1 Nf5 21. Bxf5 exf5 22. c4 bxc3 23. Nxc3 {0-1 (47) Huebner,R (2583)-Breder,D (2463) Switzerland 2016}) 16... Rd8 {[%emt 0:00:32]} 17. Bxc8 {[%emt 0:00:13]} Raxc8 {[%emt 0:00:04] An interesting draw.   Weighted Error Value: White=0.19 (very precise) /Black=0.16 (very precise)} 1/2-1/2

[Event "ITT 1st Parada Jamundi 2022"]
[Site "Jamundi Valle"]
[Date "2022.12.11"]
[Round "9.12"]
[White "Mogollon Tobar, Nicolle Julieth"]
[Black "Londono Lopez, Donaldo"]
[Result "1/2-1/2"]
[ECO "B53"]
[WhiteElo "1840"]
[BlackElo "2055"]
[Annotator "TA"]
[PlyCount "93"]
[EventDate "2022.12.05"]
[EventType "swiss"]
[EventCountry "COL"]
[SourceTitle "playchess.com"]
[Source "ChessBase"]
[SourceQuality "1"]
[TimeControl "5400+30"]

{[%evp 9,93,13,10,0,0,0,0,0,9,-6,0,0,0,-40,-37,-29,-32,-41,29,23,28,-8,0,0,0,0,0,0,29,-8,-16,0,0,0,20,21,35,17,43,37,34,-19,0,0,0,0,0,0,0,0,12,0,76,0,0,0,0,0,0,0,0,-17,0,-38,0,-116,-115,-100,-104,-115,-16,-10,42,38,38,56,56,0,0,0,0,0,0,0,0,0]} 1. e4 {[%emt 0:00:34]} c5 {[%emt 0:00:23]} 2. Nf3 {[%emt 0:00:05]} d6 {[%emt 0:00:17]} 3. Bb5+ {[%emt 0:00:15]} Nc6 {[%emt 0:00:19]} 4. d4 {[%emt 0:00:37]} cxd4 {[%emt 0:00:28]} 5. Qxd4 {[%emt 0:00:12]} a6 {[%emt 0:02:46]} 6. Bxc6+ {[%emt 0:00:17] B53: Sicilian: 2...d6: Lines with Qxd4.} bxc6 {[%emt 0:00:07]} 7. c4 {[%emt 0:00:47]} e5 {[%emt 0:00:23]} 8. Qd3 {[%emt 0:00:15]} Ne7 {[%emt 0:00:19]} 9. O-O {[%emt 0:01:24][%cal Oc4c5]} Ng6 {[%emt 0:00:16]} 10. Nc3 {[%emt 0:01:42]} Be7 {[%emt 0:00:22]} 11. Ne2 {[%emt 0:01:59] [#]} Be6 $146 {[%emt 0:17:24]} ({Predecessor:} 11... O-O 12. Ng3 d5 13. cxd5 cxd5 14. exd5 f5 15. Qc4 Kh8 16. Re1 e4 17. Nd4 Ne5 {1-0 (41) Dimakiling,O (2423)-Matlakov,M (2692) Sharjah 2019}) 12. Rd1 {[%emt 0:02:52]} O-O {[%emt 0:11:25]} 13. Ng3 {[%emt 0:03:34] Against f5} f6 {[%emt 0:04:06]} (13... Qd7 $15) 14. h4 $11 {[%emt 0:03:02]} Nh8 {[%emt 0:05:28]} 15. b3 {[%emt 0:03:25]} Nf7 {[%emt 0:00:43]} 16. h5 {[%emt 0:03:25]} Qc7 {[%emt 0:02:11]} 17. Nh4 {[%emt 0:09:13]} Rfd8 {[%emt 0:12:14]} 18. Qf3 {[%emt 0:02:39] Inhibits d5.} Rd7 {[%emt 0:06:59]} 19. Ngf5 {[%emt 0:05:41] Threatens to win with h6.} Bf8 $1 {[%emt 0:00:33]} 20. Qg4 {[%emt 0:19:21]} Kh8 {[%emt 0:04:57]} 21. Rd3 {[%emt 0:00:49]} d5 {[%emt 0:06:02]} 22. cxd5 {[%emt 0:10:29]} (22. exd5 {seems wilder.} cxd5 23. cxd5 Bxd5 24. Ba3) 22... cxd5 {[%emt 0:00:13]} 23. exd5 {[%emt 0:01:50]} Rxd5 {[%emt 0:00:46]} 24. Rxd5 {[%emt 0:00:30] Dancing on a razor blade.} Bxd5 {[%emt 0:00:26] [#]} 25. Be3 {[%emt 0:00:19]} (25. Ba3 $1 $14 Nh6 26. Qd1 Bxa3 27. Qxd5) 25... Nd6 {[%emt 0:05:35]} (25... Be6 {simplifies} 26. Qf3 Rd8 27. Rc1 Qd7) 26. Rc1 {[%emt 0:01:31]} Qb7 {[%emt 0:03:47]} 27. Nxd6 {[%emt 0:05:02]} Bxd6 {[%emt 0:00:20]} 28. Qf5 {[%emt 0:02:59]} Ba3 {[%emt 0:05:48] A strong pair of Bishops.} 29. Rc3 {[%emt 0:02:00]} Be4 {[%emt 0:01:01] Inhibits h6.} 30. Qe6 {[%emt 0:00:24] h6 is the strong threat.} Bb4 {[%emt 0:01:09] Prevents h6.} (30... Bd5 $11 31. Qg4 Bf8) 31. Rc1 {[%emt 0:01:02] White is more active.} (31. Rc4 $16) 31... Ba3 {[%emt 0:01:57]} 32. Rc3 {[%emt 0:00:02]} Bd5 $36 {[%emt 0:00:08][%mdl 2048] Prevents h6. Black is more active.} 33. Qf5 {[%emt 0:00:10]} Bb4 {[%emt 0:00:00] Against h6} 34. Rc1 {[%emt 0:00:11]} Be7 {[%emt 0:00:36]} 35. f4 {[%emt 0:05:40]} Ba3 {[%emt 0:01:26]} 36. Rc3 {[%emt 0:00:20]} Be4 {[%emt 0:01:50] Against h6} 37. Qe6 {[%emt 0:00:32] [#]} (37. Qh3 $11) 37... Bb2 $1 $17 {[%emt 0:00:20]} 38. Rc5 {[%emt 0:00:16][%cal Rf4e5]} exf4 {[%emt 0:00:15]} 39. Bf2 {[%emt 0:04:21]} Be5 {[%emt 0:00:33]} (39... Rd8 $17 {Hoping for ...g5.} 40. Qg4 Re8 41. Ng6+ hxg6 42. hxg6 Kg8) 40. h6 $11 {[%emt 0:00:51]} gxh6 {[%emt 0:03:15]} (40... Rd8 $11) 41. Rxe5 $1 $14 {[%emt 0:01:05]} fxe5 {[%emt 0:00:18]} 42. Qxe5+ {[%emt 0:00:19]} Kg8 {[%emt 0:00:24]} 43. Qe6+ {[%emt 0:00:31]} ({And not} 43. Qxf4 Qc6 44. Nf5 (44. Bd4 $2 Rf8 $17) 44... Bxf5 45. Qxf5 Re8 $17) (43. Bd4 $1 $14 Rf8 44. Qe6+ Rf7 45. Qe8+ (45. Qxh6 $2 Qd5 $19) 45... Rf8 46. Qe5) 43... Kf8 {[%emt 0:01:03] The position is equal.} 44. Bc5+ {[%emt 0:01:28]} ({Of course not} 44. Qxh6+ Ke8 $15) 44... Kg7 {[%emt 0:00:08]} 45. Bd4+ {[%emt 0:00:41][%mdl 64] Overworked Piece} Kf8 {[%emt 0:00:15]} 46. Bc5+ {[%emt 0:02:49]} ({Reject} 46. Qxh6+ Ke8 47. Qxf4 Qd5 $17) 46... Kg7 {[%emt 0:00:11]} 47. Bd4+ {[%emt 0:04:25] Weighted Error Value: White=0.14 (very precise) /Black=0.17 (very precise)} 1/2-1/2

[Event "ITT 1st Parada Jamundi 2022"]
[Site "Jamundi Valle"]
[Date "2022.12.11"]
[Round "9.13"]
[White "Lopez Rayo, Isabella"]
[Black "Malka, Samuel"]
[Result "0-1"]
[ECO "B33"]
[WhiteElo "1898"]
[BlackElo "2265"]
[Annotator "TA"]
[PlyCount "63"]
[EventDate "2022.12.05"]
[EventType "swiss"]
[EventCountry "COL"]
[SourceTitle "playchess.com"]
[Source "ChessBase"]
[SourceQuality "1"]
[TimeControl "5400+30"]

{[%evp 29,63,0,0,-9,-11,-10,10,14,14,16,46,26,27,20,39,36,32,0,0,0,0,0,0,-26,-22,-54,-46,-68,-70,-76,-66,-77,-79,-938,-936,-29998]} 1. e4 {[%emt 0:00:40]} c5 {[%emt 0:00:25]} 2. Nf3 {[%emt 0:00:07][%cal Bg1f3,Bf3d4,Bd4b5,Bb5a3,Ba3c2][%mdl 32]} Nc6 {[%emt 0:00:04]} 3. d4 {[%emt 0:00:07]} cxd4 {[%emt 0:00:04]} 4. Nxd4 {[%emt 0:00:07]} Nf6 {[%emt 0:00:27]} 5. Nc3 {[%emt 0:00:05]} e5 {[%emt 0:00:07]} 6. Ndb5 {[%emt 0:00:08]} d6 {[%emt 0:00:05]} 7. Bg5 {[%emt 0:00:48]} a6 {[%emt 0:00:17]} 8. Na3 {[%emt 0:00:06]} b5 {[%emt 0:00:11]} 9. Nd5 {[%emt 0:00:10]} Be7 {[%emt 0:00:21]} 10. Bxf6 {[%emt 0:00:05]} Bxf6 {[%emt 0:00:05]} 11. c3 {[%emt 0:00:08]} O-O {[%emt 0:00:15]} 12. Be2 {[%emt 0:01:07]} Bg5 {[%emt 0:04:28]} 13. Nc2 {[%emt 0:01:06]} Rb8 {[%emt 0:11:52]} 14. O-O {[%emt 0:02:35]} a5 {[%emt 0:04:01]} 15. Qd3 {[%emt 0:08:39]} Ne7 {[%emt 0:04:49]} 16. Rad1 {[%emt 0:18:17] B33: Sicilian: Pelikan and Sveshnikov Variations.} Nxd5 {[%emt 0:04:23]} 17. Qxd5 {[%emt 0:00:16]} Bb7 {[%emt 0:01:00][%cal Bc8b7,Bb7d5,Bd5e6][%mdl 32]} (17... Be6 $5 {[%cal Re6d5]} 18. Qxd6 Qxd6 19. Rxd6 b4 $11) 18. Qd3 {[%emt 0:03:37] [#] The position is equal.} Qb6 $146 {[%emt 0:07:57]} ({Predecessor:} 18... Bc6 19. Bf3 Be7 20. Ne3 g6 21. Rd2 Qb6 22. Rfd1 Qb7 23. Qb1 Kh8 24. Nd5 Bg5 {½-½ (73) Zuse,P (2305)-Schmid,G (2315) Germany 1990}) 19. Na3 {[%emt 0:05:59]} Rfd8 {[%emt 0:09:59]} 20. Qxb5 {[%emt 0:04:48]} (20. Nxb5 {keeps more tension.} d5 21. exd5 Bxd5 22. Qf5) 20... Qc7 {[%emt 0:05:35]} 21. Qa4 {[%emt 0:13:20]} d5 {[%emt 0:05:35]} 22. exd5 {[%emt 0:01:24]} Bxd5 {[%emt 0:00:12]} 23. Qg4 {[%emt 0:01:19]} (23. Bc4 {simplifies} Qc6 24. Qxc6 Bxc6 25. Rxd8+ Rxd8 26. b4) 23... Be7 {[%emt 0:12:45]} ({Don't take} 23... Rxb2 24. c4 Rxe2 25. Qxe2 $16) 24. Nb5 {[%emt 0:13:04]} Qc5 {[%emt 0:00:25]} 25. c4 {[%emt 0:02:17]} Be6 {[%emt 0:00:47] This pair of bishops is nice.} 26. Rxd8+ {[%emt 0:02:23]} Rxd8 {[%emt 0:03:46][%cal Bb8d8,Bd8d2,Bd2b2,Bb2e2][%mdl 32]} 27. Qe4 {[%emt 0:01:10]} (27. Qf3 {simplifies} Bxc4 28. Bxc4 Qxc4 29. Nc3) 27... Rd2 {[%emt 0:01:15]} 28. Nc3 {[%emt 0:03:33]} ({Don't go for} 28. Bd3 $2 f5 29. Qa8+ Bf8 30. Qxa5 Rxd3 $19) 28... Qd4 {[%emt 0:07:31] [#] And now ...Qxe4 would win.} 29. Qa8+ {[%emt 0:02:21]} Bf8 {[%emt 0:01:01]} 30. Qxa5 {[%emt 0:06:41]} Rxb2 {[%emt 0:00:15] Strongly threatening ...e4. Black is much more active.} ({But not} 30... Bxc4 31. Bxc4 Qxc4 32. Qxe5 $11) 31. Rd1 $2 {[%emt 0:00:48][%mdl 8192] [#] Inhibits e4.} (31. h3 $17) 31... Rxe2 $1 $19 {[%emt 0:01:36][%mdl 576]} 32. Nb1 {[%emt 0:09:15] Weighted Error Value: White=0.44/Black=0.04 (flawless)} (32. Rf1 Qd2) 0-1

[Event "ITT 1st Parada Jamundi 2022"]
[Site "Jamundi Valle"]
[Date "2022.12.11"]
[Round "9.14"]
[White "Borrero, Alexander"]
[Black "Hernandez Pinzon, Helvert"]
[Result "1-0"]
[ECO "B20"]
[WhiteElo "1988"]
[BlackElo "1835"]
[Annotator "TA"]
[PlyCount "51"]
[EventDate "2022.12.05"]
[EventType "swiss"]
[EventCountry "COL"]
[SourceTitle "playchess.com"]
[Source "ChessBase"]
[SourceQuality "1"]
[TimeControl "5400+30"]

{[%evp 9,51,6,9,-7,-4,0,0,-6,-4,-124,-119,-121,-37,-43,-34,-33,-35,-40,-26,-75,-74,-71,-67,-52,-60,-48,0,-1,0,-11,6,8,1,10,231,225,2542,2248,5945,5875,3633,2952,5098,1141]} 1. e4 {[%emt 0:00:53]} c5 {[%emt 0:00:12]} 2. a3 {[%emt 0:00:59]} a6 {[%emt 0:02:44]} 3. b4 {[%emt 0:02:06] [#]} b6 $146 {[%emt 0:04:24]} ({Predecessor:} 3... Nc6 4. bxc5 e5 5. Nf3 Bxc5 6. Bc4 Nf6 7. Nc3 O-O 8. d3 d6 9. h3 Nd4 {½-½ (59) Geller,J (2481)-Frolyanov,D (2577) Nizhnij Tagil 2015}) 4. bxc5 {[%emt 0:08:14]} bxc5 {[%emt 0:00:18]} 5. Nc3 {[%emt 0:00:26]} Nc6 {[%emt 0:00:38]} 6. Bc4 {[%emt 0:00:16] B20: Sicilian: Unusual White 2nd moves.} Nf6 {[%emt 0:02:29][%cal Of6e4]} 7. Nf3 {[%emt 0:02:38]} d6 {[%emt 0:06:40] Prevents e5.} 8. h3 {[%emt 0:03:56] The position is equal.} e6 {[%emt 0:02:25][%cal Of6e4]} 9. d4 {[%emt 0:02:03]} (9. O-O) (9. Rb1 $11) 9... cxd4 $1 $17 {[%emt 0:01:56]} 10. Nxd4 {[%emt 0:03:52]} Bd7 {[%emt 0:00:37]} (10... Qa5 11. Bb2 Qc5 12. Nxc6 Qxc4) ({Black should try} 10... Qa5 $1 $17 {[%cal Ra5c3]} 11. Bb2 Qc5 12. Nxc6 Qxc4) 11. O-O $15 {[%emt 0:00:43]} Be7 {[%emt 0:00:54]} 12. Rb1 {[%emt 0:01:25]} Qc7 {[%emt 0:00:49] And now ...Ne5 would win.} 13. Be2 {[%emt 0:03:40]} O-O {[%emt 0:02:07]} 14. Bb2 {[%emt 0:03:34]} (14. Nxc6 $11 Bxc6 15. Qd3) 14... Ne5 $17 {[%emt 0:05:02]} 15. Nf3 {[%emt 0:00:22]} Nc4 {[%emt 0:13:43] Hoping for ...Nxb2.} 16. Bxc4 {[%emt 0:02:31]} Qxc4 {[%emt 0:00:05]} 17. e5 {[%emt 0:00:13]} Nd5 {[%emt 0:04:06]} (17... dxe5 $15 {was preferrable.} 18. Nxe5 Qc7 19. Nxd7 Nxd7) 18. Nxd5 $11 {[%emt 0:06:06]} exd5 {[%emt 0:00:16]} 19. Re1 {[%emt 0:04:23]} Rfc8 {[%emt 0:02:21]} 20. exd6 {[%emt 0:02:43]} Bxd6 {[%emt 0:48:44] A strong pair of Bishops.} 21. Ne5 {[%emt 0:06:03]} Qc7 {[%emt 0:00:00] [#] This move loses the game for Black.} (21... Bxe5 $11 {and Black has nothing to worry.} 22. Bxe5 Bf5) 22. Nxf7 $1 $40 {[%emt 0:44:24][%cal Od1d4][%mdl 128] aiming for Qd4! White attacks with force.} (22. Qxd5 Be6 23. Qd2 Rab8 $11) 22... Kxf7 $2 {[%emt 0:00:00]} (22... Bh2+ 23. Kh1 Ba4 24. Nh6+ (24. Qxd5 Qxf7 25. Qxf7+ Kxf7) 24... Kh8 25. Qxd5) (22... Rf8) (22... Bh2+ $2 23. Kh1 Ba4 {[#]} 24. Nh6+ $1 {[%mdl 512]} (24. Qxd5 Qxf7 25. Qxf7+ Kxf7 $16) 24... Kh8 25. Qg4 $18) (22... Rf8) 23. Qd4 {[%emt 0:00:00][%csl Gb2][%cal Rd4g7] White is clearly winning.} (23. Qxd5+ Kf8) ({Weaker is} 23. Qxd5+ Kf8 $18) 23... Rg8 {[%emt 0:00:00]} 24. Qxd5+ {[%emt 0:00:00]} Kf8 {[%emt 0:00:00]} 25. Qxa8+ {[%emt 0:00:00]} Bc8 {[%emt 0:00:00]} 26. Qf3+ {[%emt 0:00:00] Weighted Error Value: White=0.14 (very precise) /Black=0.31} 1-0